{"text_format":"1","workbook":"xlsx","n_sheets":1,"sheets":["Лист1"],"not_rendered":{"charts":0,"images":0,"macros":1,"external_links":0,"defined_names":1,"comments":0,"pivot_tables":0},"unopened":[],"bounds":{"document_bytes":16777216,"sheet_cells":100000,"rows_first":2000,"rows_last":500,"rows_between":2000,"halvings":0,"cell_chars":16384,"cell_head_chars":4096},"cells_cut":0,"cells_raw":0,"read":"whole","date_system":"1900"}

{"sheet":"Лист1","index":0,"n_rows":200,"n_cols":3,"rows_kept":200,"cut":false,"hidden":false,"merged":[]}
["Фраза","минус слова"]
["футболка с крестом женская","что",{"$f":"IF(COUNT(SEARCH($B$2:$B$156,A2)),\"\",A2)","v":"футболка с крестом женская"}]
["прикольные футболки"," !это",{"$f":"IF(COUNT(SEARCH($B$2:$B$156,A3)),\"\",A3)","v":"прикольные футболки"}]
["женские футболки"," !как",{"$f":"IF(COUNT(SEARCH($B$2:$B$156,A4)),\"\",A4)","v":"женские футболки"}]
["магазин футболок","бесплатно",{"$f":"IF(COUNT(SEARCH($B$2:$B$156,A5)),\"\",A5)","v":"магазин футболок"}]
["интернет магазин футболок","free",{"$f":"IF(COUNT(SEARCH($B$2:$B$156,A6)),\"\",A6)","v":"интернет магазин футболок"}]
["модные футболки 2015 женские фото","реферат",{"$f":"IF(COUNT(SEARCH($B$2:$B$156,A7)),\"\",A7)","v":""}]
["футболки для девочек","курсовая",{"$f":"IF(COUNT(SEARCH($B$2:$B$156,A8)),\"\",A8)","v":"футболки для девочек"}]
["модные футболки","диплом",{"$f":"IF(COUNT(SEARCH($B$2:$B$156,A9)),\"\",A9)","v":"модные футболки"}]
["купить майку","диссертация",{"$f":"IF(COUNT(SEARCH($B$2:$B$156,A10)),\"\",A10)","v":"купить майку"}]
["футболки женские стильные","шпоры",{"$f":"IF(COUNT(SEARCH($B$2:$B$156,A11)),\"\",A11)","v":"футболки женские стильные"}]
["дешевые футболки","контрольная",{"$f":"IF(COUNT(SEARCH($B$2:$B$156,A12)),\"\",A12)","v":"дешевые футболки"}]
["футболки женские 2015","образец",{"$f":"IF(COUNT(SEARCH($B$2:$B$156,A13)),\"\",A13)","v":""}]
["оригинальные футболки","договор",{"$f":"IF(COUNT(SEARCH($B$2:$B$156,A14)),\"\",A14)","v":"оригинальные футболки"}]
["купить женскую футболку","оквэд",{"$f":"IF(COUNT(SEARCH($B$2:$B$156,A15)),\"\",A15)","v":"купить женскую футболку"}]
["белая футболка женская","скачать",{"$f":"IF(COUNT(SEARCH($B$2:$B$156,A16)),\"\",A16)","v":"белая футболка женская"}]
["футболки с миньонами купить москва","download",{"$f":"IF(COUNT(SEARCH($B$2:$B$156,A17)),\"\",A17)","v":"футболки с миньонами купить москва"}]
["модные женские футболки 2015","фото",{"$f":"IF(COUNT(SEARCH($B$2:$B$156,A18)),\"\",A18)","v":""}]
["футболки с микки маусом женские","видео",{"$f":"IF(COUNT(SEARCH($B$2:$B$156,A19)),\"\",A19)","v":"футболки с микки маусом женские"}]
["футболки женские купить в интернет магазине","определение",{"$f":"IF(COUNT(SEARCH($B$2:$B$156,A20)),\"\",A20)","v":"футболки женские купить в интернет магазине"}]
["майка с принтом","википедия",{"$f":"IF(COUNT(SEARCH($B$2:$B$156,A21)),\"\",A21)","v":"майка с принтом"}]
["купить футболки женские в интернет магазине недорого","wikipedia",{"$f":"IF(COUNT(SEARCH($B$2:$B$156,A22)),\"\",A22)","v":"купить футболки женские в интернет магазине недорого"}]
["футболки недорого","вики",{"$f":"IF(COUNT(SEARCH($B$2:$B$156,A23)),\"\",A23)","v":"футболки недорого"}]
["модные женские футболки","wiki",{"$f":"IF(COUNT(SEARCH($B$2:$B$156,A24)),\"\",A24)","v":"модные женские футболки"}]
["футболки москва","онлайн",{"$f":"IF(COUNT(SEARCH($B$2:$B$156,A25)),\"\",A25)","v":"футболки москва"}]
["где купить футболку с путиным в москве","online",{"$f":"IF(COUNT(SEARCH($B$2:$B$156,A26)),\"\",A26)","v":"где купить футболку с путиным в москве"}]
["купить футболку я русский","порно",{"$f":"IF(COUNT(SEARCH($B$2:$B$156,A27)),\"\",A27)","v":"купить футболку я русский"}]
["майки с принтом","секс",{"$f":"IF(COUNT(SEARCH($B$2:$B$156,A28)),\"\",A28)","v":"майки с принтом"}]
["футболка в полоску женская","форум",{"$f":"IF(COUNT(SEARCH($B$2:$B$156,A29)),\"\",A29)","v":""}]
["модные футболки 2015 женские купить","схема",{"$f":"IF(COUNT(SEARCH($B$2:$B$156,A30)),\"\",A30)","v":""}]
["купить прикольную футболку в интернет магазине","устройство",{"$f":"IF(COUNT(SEARCH($B$2:$B$156,A31)),\"\",A31)","v":"купить прикольную футболку в интернет магазине"}]
["майки женские купить интернет магазин","состав",{"$f":"IF(COUNT(SEARCH($B$2:$B$156,A32)),\"\",A32)","v":"майки женские купить интернет магазин"}]
["брендовые футболки женские","гост",{"$f":"IF(COUNT(SEARCH($B$2:$B$156,A33)),\"\",A33)","v":"брендовые футболки женские"}]
["женские футболки интернет магазин","способ",{"$f":"IF(COUNT(SEARCH($B$2:$B$156,A34)),\"\",A34)","v":"женские футболки интернет магазин"}]
["футболка с микки маусом женская купить","работа",{"$f":"IF(COUNT(SEARCH($B$2:$B$156,A35)),\"\",A35)","v":"футболка с микки маусом женская купить"}]
["футболка вежливые люди купить в спб","вакансии",{"$f":"IF(COUNT(SEARCH($B$2:$B$156,A36)),\"\",A36)","v":"футболка вежливые люди купить в спб"}]
["футболки с супергероями купить","инструкция",{"$f":"IF(COUNT(SEARCH($B$2:$B$156,A37)),\"\",A37)","v":"футболки с супергероями купить"}]
["футболки поло женские купить"," !своими",{"$f":"IF(COUNT(SEARCH($B$2:$B$156,A38)),\"\",A38)","v":""}]
["купить белую футболку мужскую","самостоятельно",{"$f":"IF(COUNT(SEARCH($B$2:$B$156,A39)),\"\",A39)","v":""}]
["оригинальные футболки купить","технология",{"$f":"IF(COUNT(SEARCH($B$2:$B$156,A40)),\"\",A40)","v":"оригинальные футболки купить"}]
["футболка с черепом женская"," !или",{"$f":"IF(COUNT(SEARCH($B$2:$B$156,A41)),\"\",A41)","v":"футболка с черепом женская"}]
["футболка jack daniels женская","рисунок",{"$f":"IF(COUNT(SEARCH($B$2:$B$156,A42)),\"\",A42)","v":"футболка jack daniels женская"}]
["футболка джек дэниэлс купить","картинка",{"$f":"IF(COUNT(SEARCH($B$2:$B$156,A43)),\"\",A43)","v":"футболка джек дэниэлс купить"}]
["купить футболку с миньонами спб","недостатки",{"$f":"IF(COUNT(SEARCH($B$2:$B$156,A44)),\"\",A44)","v":"купить футболку с миньонами спб"}]
["серая футболка женская","описание",{"$f":"IF(COUNT(SEARCH($B$2:$B$156,A45)),\"\",A45)","v":"серая футболка женская"}]
["футболка с путиным женская купить","мужские",{"$f":"IF(COUNT(SEARCH($B$2:$B$156,A46)),\"\",A46)","v":"футболка с путиным женская купить"}]
["футболки для подростков девочек","мальчик",{"$f":"IF(COUNT(SEARCH($B$2:$B$156,A47)),\"\",A47)","v":"футболки для подростков девочек"}]
["женская футболка с путиным","мужчин",{"$f":"IF(COUNT(SEARCH($B$2:$B$156,A48)),\"\",A48)","v":"женская футболка с путиным"}]
["короткая футболка женская","него",{"$f":"IF(COUNT(SEARCH($B$2:$B$156,A49)),\"\",A49)","v":"короткая футболка женская"}]
["красивые футболки женские","мужская",{"$f":"IF(COUNT(SEARCH($B$2:$B$156,A50)),\"\",A50)","v":"красивые футболки женские"}]
["летние футболки женские","мужскую",{"$f":"IF(COUNT(SEARCH($B$2:$B$156,A51)),\"\",A51)","v":"летние футболки женские"}]
["парные футболки купить в спб","военная",{"$f":"IF(COUNT(SEARCH($B$2:$B$156,A52)),\"\",A52)","v":"парные футболки купить в спб"}]
["футболки с путиным купить интернет магазин москва","производство",{"$f":"IF(COUNT(SEARCH($B$2:$B$156,A53)),\"\",A53)","v":"футболки с путиным купить интернет магазин москва"}]
["стильные футболки для девушек","оптом",{"$f":"IF(COUNT(SEARCH($B$2:$B$156,A54)),\"\",A54)","v":"стильные футболки для девушек"}]
["купить майку женскую","сублимация",{"$f":"IF(COUNT(SEARCH($B$2:$B$156,A55)),\"\",A55)","v":"купить майку женскую"}]
["купить футболку в москве","оборудование",{"$f":"IF(COUNT(SEARCH($B$2:$B$156,A56)),\"\",A56)","v":"купить футболку в москве"}]
["мужские футболки спб купить","печать",{"$f":"IF(COUNT(SEARCH($B$2:$B$156,A57)),\"\",A57)","v":""}]
["футболки женские 2015 фото","ливерпуль",{"$f":"IF(COUNT(SEARCH($B$2:$B$156,A58)),\"\",A58)","v":""}]
["купить футболку с принтом в интернет магазине","барселона",{"$f":"IF(COUNT(SEARCH($B$2:$B$156,A59)),\"\",A59)","v":"купить футболку с принтом в интернет магазине"}]
["купить футболку с изображением путина","манчестер",{"$f":"IF(COUNT(SEARCH($B$2:$B$156,A60)),\"\",A60)","v":"купить футболку с изображением путина"}]
["полосатая футболка женская","украина",{"$f":"IF(COUNT(SEARCH($B$2:$B$156,A61)),\"\",A61)","v":""}]
["молодежные футболки для девушек","киев",{"$f":"IF(COUNT(SEARCH($B$2:$B$156,A62)),\"\",A62)","v":"молодежные футболки для девушек"}]
["купить парные футболки для влюбленных","оддеса",{"$f":"IF(COUNT(SEARCH($B$2:$B$156,A63)),\"\",A63)","v":"купить парные футболки для влюбленных"}]
["майки и футболки женские","танк",{"$f":"IF(COUNT(SEARCH($B$2:$B$156,A64)),\"\",A64)","v":"майки и футболки женские"}]
["купить крутую футболку","донецк",{"$f":"IF(COUNT(SEARCH($B$2:$B$156,A65)),\"\",A65)","v":"купить крутую футболку"}]
["прикольные женские футболки","сборная",{"$f":"IF(COUNT(SEARCH($B$2:$B$156,A66)),\"\",A66)","v":"прикольные женские футболки"}]
["футболки вежливые люди купить в москве","ввс",{"$f":"IF(COUNT(SEARCH($B$2:$B$156,A67)),\"\",A67)","v":"футболки вежливые люди купить в москве"}]
["купить стильную мужскую футболку","вдв",{"$f":"IF(COUNT(SEARCH($B$2:$B$156,A68)),\"\",A68)","v":""}]
["купить футболку с путиным дешево","емельяненко",{"$f":"IF(COUNT(SEARCH($B$2:$B$156,A69)),\"\",A69)","v":"купить футболку с путиным дешево"}]
["парные футболки купить в москве","майнкрафт",{"$f":"IF(COUNT(SEARCH($B$2:$B$156,A70)),\"\",A70)","v":"парные футболки купить в москве"}]
["яркие футболки женские","нанесение",{"$f":"IF(COUNT(SEARCH($B$2:$B$156,A71)),\"\",A71)","v":"яркие футболки женские"}]
["купить футболку для девочки","самбо",{"$f":"IF(COUNT(SEARCH($B$2:$B$156,A72)),\"\",A72)","v":"купить футболку для девочки"}]
["купить белую футболку женскую","борьба",{"$f":"IF(COUNT(SEARCH($B$2:$B$156,A73)),\"\",A73)","v":"купить белую футболку женскую"}]
["купить стильную футболку женскую","3д",{"$f":"IF(COUNT(SEARCH($B$2:$B$156,A74)),\"\",A74)","v":"купить стильную футболку женскую"}]
["купить футболку с путиным в екатеринбурге","спортивная",{"$f":"IF(COUNT(SEARCH($B$2:$B$156,A75)),\"\",A75)","v":"купить футболку с путиным в екатеринбурге"}]
["трикотажные футболки женские","нхл",{"$f":"IF(COUNT(SEARCH($B$2:$B$156,A76)),\"\",A76)","v":"трикотажные футболки женские"}]
["футболки джек дэниэлс женские","поло",{"$f":"IF(COUNT(SEARCH($B$2:$B$156,A77)),\"\",A77)","v":"футболки джек дэниэлс женские"}]
["футболки женские распродажа","символика",{"$f":"IF(COUNT(SEARCH($B$2:$B$156,A78)),\"\",A78)","v":"футболки женские распродажа"}]
["женские футболки с принтом","черная",{"$f":"IF(COUNT(SEARCH($B$2:$B$156,A79)),\"\",A79)","v":"женские футболки с принтом"}]
["купить футболку с микки маусом","плейн",{"$f":"IF(COUNT(SEARCH($B$2:$B$156,A80)),\"\",A80)","v":"купить футболку с микки маусом"}]
["футболка спанч боб купить","алиэкспресс",{"$f":"IF(COUNT(SEARCH($B$2:$B$156,A81)),\"\",A81)","v":"футболка спанч боб купить"}]
["футболка супермен женская","спартак",{"$f":"IF(COUNT(SEARCH($B$2:$B$156,A82)),\"\",A82)","v":"футболка супермен женская"}]
["хлопковые футболки купить","динамо",{"$f":"IF(COUNT(SEARCH($B$2:$B$156,A83)),\"\",A83)","v":"хлопковые футболки купить"}]
["стильные майки для девушек","зенит",{"$f":"IF(COUNT(SEARCH($B$2:$B$156,A84)),\"\",A84)","v":"стильные майки для девушек"}]
["футболки для женщин","цска",{"$f":"IF(COUNT(SEARCH($B$2:$B$156,A85)),\"\",A85)","v":"футболки для женщин"}]
["где купить футболку с путиным в спб","именем",{"$f":"IF(COUNT(SEARCH($B$2:$B$156,A86)),\"\",A86)","v":"где купить футболку с путиным в спб"}]
["купить красивую футболку женскую","мвд",{"$f":"IF(COUNT(SEARCH($B$2:$B$156,A87)),\"\",A87)","v":"купить красивую футболку женскую"}]
["купить футболку в интернете","мчс",{"$f":"IF(COUNT(SEARCH($B$2:$B$156,A88)),\"\",A88)","v":"купить футболку в интернете"}]
["купить футболку с совой","печати",{"$f":"IF(COUNT(SEARCH($B$2:$B$156,A89)),\"\",A89)","v":"купить футболку с совой"}]
["майка женская купить","беременных",{"$f":"IF(COUNT(SEARCH($B$2:$B$156,A90)),\"\",A90)","v":"майка женская купить"}]
["где можно купить футболку с путиным","больших",{"$f":"IF(COUNT(SEARCH($B$2:$B$156,A91)),\"\",A91)","v":"где можно купить футболку с путиным"}]
["купить детскую футболку в интернет магазине","длинным",{"$f":"IF(COUNT(SEARCH($B$2:$B$156,A92)),\"\",A92)","v":"купить детскую футболку в интернет магазине"}]
["купить патриотическую футболку","команда",{"$f":"IF(COUNT(SEARCH($B$2:$B$156,A93)),\"\",A93)","v":"купить патриотическую футболку"}]
["магазин женских футболок","спорт",{"$f":"IF(COUNT(SEARCH($B$2:$B$156,A94)),\"\",A94)","v":"магазин женских футболок"}]
["модные футболки купить в интернет магазине","термопресс",{"$f":"IF(COUNT(SEARCH($B$2:$B$156,A95)),\"\",A95)","v":"модные футболки купить в интернет магазине"}]
["футболки александр конасов купить","германия",{"$f":"IF(COUNT(SEARCH($B$2:$B$156,A96)),\"\",A96)","v":"футболки александр конасов купить"}]
["футболки молодежные женские","турция",{"$f":"IF(COUNT(SEARCH($B$2:$B$156,A97)),\"\",A97)","v":"футболки молодежные женские"}]
["купить красивые футболки в интернет магазине","мадрид",{"$f":"IF(COUNT(SEARCH($B$2:$B$156,A98)),\"\",A98)","v":"купить красивые футболки в интернет магазине"}]
["купить модную мужскую футболку","боско",{"$f":"IF(COUNT(SEARCH($B$2:$B$156,A99)),\"\",A99)","v":""}]
["купить футболку крым наш","своей",{"$f":"IF(COUNT(SEARCH($B$2:$B$156,A100)),\"\",A100)","v":"купить футболку крым наш"}]
["модели женских футболок","своим",{"$f":"IF(COUNT(SEARCH($B$2:$B$156,A101)),\"\",A101)","v":"модели женских футболок"}]
["майки с принтом купить","найк",{"$f":"IF(COUNT(SEARCH($B$2:$B$156,A102)),\"\",A102)","v":"майки с принтом купить"}]
["где купить футболку с изображением путина","адидас",{"$f":"IF(COUNT(SEARCH($B$2:$B$156,A103)),\"\",A103)","v":"где купить футболку с изображением путина"}]
["женские свободные футболки","торпедо",{"$f":"IF(COUNT(SEARCH($B$2:$B$156,A104)),\"\",A104)","v":"женские свободные футболки"}]
["купить футболки в спб недорого","байкер",{"$f":"IF(COUNT(SEARCH($B$2:$B$156,A105)),\"\",A105)","v":"купить футболки в спб недорого"}]
["купить футболку с волком","хоккей",{"$f":"IF(COUNT(SEARCH($B$2:$B$156,A106)),\"\",A106)","v":"купить футболку с волком"}]
["купить футболку с черепом","nike",{"$f":"IF(COUNT(SEARCH($B$2:$B$156,A107)),\"\",A107)","v":"купить футболку с черепом"}]
["недорогие футболки женские","adidas",{"$f":"IF(COUNT(SEARCH($B$2:$B$156,A108)),\"\",A108)","v":"недорогие футболки женские"}]
["футболки женские интернет магазин недорого","3d",{"$f":"IF(COUNT(SEARCH($B$2:$B$156,A109)),\"\",A109)","v":"футболки женские интернет магазин недорого"}]
["футболки туники женские","barcelona",{"$f":"IF(COUNT(SEARCH($B$2:$B$156,A110)),\"\",A110)","v":"футболки туники женские"}]
["нарядные футболки для девочек","aliexpress",{"$f":"IF(COUNT(SEARCH($B$2:$B$156,A111)),\"\",A111)","v":"нарядные футболки для девочек"}]
["женские футболки недорого","plein",{"$f":"IF(COUNT(SEARCH($B$2:$B$156,A112)),\"\",A112)","v":"женские футболки недорого"}]
["купить модную футболку женскую","philipp",{"$f":"IF(COUNT(SEARCH($B$2:$B$156,A113)),\"\",A113)","v":"купить модную футболку женскую"}]
["купить футболку в казани","борцовка",{"$f":"IF(COUNT(SEARCH($B$2:$B$156,A114)),\"\",A114)","v":"купить футболку в казани"}]
["самый вежливый из людей футболка купить","ария",{"$f":"IF(COUNT(SEARCH($B$2:$B$156,A115)),\"\",A115)","v":"самый вежливый из людей футболка купить"}]
["футболка губка боб купить","металика",{"$f":"IF(COUNT(SEARCH($B$2:$B$156,A116)),\"\",A116)","v":"футболка губка боб купить"}]
["футболки с кошками купить","tanks",{"$f":"IF(COUNT(SEARCH($B$2:$B$156,A117)),\"\",A117)","v":"футболки с кошками купить"}]
["футболки с мышами купить в спб","tommy",{"$f":"IF(COUNT(SEARCH($B$2:$B$156,A118)),\"\",A118)","v":"футболки с мышами купить в спб"}]
["футболки с пандой купить","metallica",{"$f":"IF(COUNT(SEARCH($B$2:$B$156,A119)),\"\",A119)","v":"футболки с пандой купить"}]
["футболки с портретом путина купить","турецкая",{"$f":"IF(COUNT(SEARCH($B$2:$B$156,A120)),\"\",A120)","v":"футболки с портретом путина купить"}]
["футболки уфа купить","фк",{"$f":"IF(COUNT(SEARCH($B$2:$B$156,A121)),\"\",A121)","v":"футболки уфа купить"}]
["футболка белая для девочки","чехлы",{"$f":"IF(COUNT(SEARCH($B$2:$B$156,A122)),\"\",A122)","v":"футболка белая для девочки"}]
["купить футболку с рисунком в интернет магазине","дзюдо",{"$f":"IF(COUNT(SEARCH($B$2:$B$156,A123)),\"\",A123)","v":"купить футболку с рисунком в интернет магазине"}]
["купить футболку с черепом мужскую","сиденье",{"$f":"IF(COUNT(SEARCH($B$2:$B$156,A124)),\"\",A124)","v":""}]
["купить футболку homies","бог",{"$f":"IF(COUNT(SEARCH($B$2:$B$156,A125)),\"\",A125)","v":"купить футболку homies"}]
["майки для женщин","руками",{"$f":"IF(COUNT(SEARCH($B$2:$B$156,A126)),\"\",A126)","v":"майки для женщин"}]
["футболка с полной запечаткой купить","свадьбу",{"$f":"IF(COUNT(SEARCH($B$2:$B$156,A127)),\"\",A127)","v":"футболка с полной запечаткой купить"}]
["футболка супермен женская купить","распечатать",{"$f":"IF(COUNT(SEARCH($B$2:$B$156,A128)),\"\",A128)","v":"футболка супермен женская купить"}]
["футболки jack daniels купить","пошив",{"$f":"IF(COUNT(SEARCH($B$2:$B$156,A129)),\"\",A129)","v":"футболки jack daniels купить"}]
["футболки женские 2015 купить","своими",{"$f":"IF(COUNT(SEARCH($B$2:$B$156,A130)),\"\",A130)","v":""}]
["модные футболки для девушек","переделать",{"$f":"IF(COUNT(SEARCH($B$2:$B$156,A131)),\"\",A131)","v":"модные футболки для девушек"}]
["белая футболка купить екатеринбург","полных",{"$f":"IF(COUNT(SEARCH($B$2:$B$156,A132)),\"\",A132)","v":"белая футболка купить екатеринбург"}]
["дешевые женские футболки","ворлд",{"$f":"IF(COUNT(SEARCH($B$2:$B$156,A133)),\"\",A133)","v":"дешевые женские футболки"}]
["купить белую футболку для девочки","рингер",{"$f":"IF(COUNT(SEARCH($B$2:$B$156,A134)),\"\",A134)","v":"купить белую футболку для девочки"}]
["купить женскую футболку недорого","ringer",{"$f":"IF(COUNT(SEARCH($B$2:$B$156,A135)),\"\",A135)","v":"купить женскую футболку недорого"}]
["купить мужскую летнюю футболку","пакеты",{"$f":"IF(COUNT(SEARCH($B$2:$B$156,A136)),\"\",A136)","v":""}]
["купить футболки 2015 года","пакет",{"$f":"IF(COUNT(SEARCH($B$2:$B$156,A137)),\"\",A137)","v":""}]
["купить футболки женские дешево","накидки",{"$f":"IF(COUNT(SEARCH($B$2:$B$156,A138)),\"\",A138)","v":"купить футболки женские дешево"}]
["купить футболку с микки маусом мужская","боксерка",{"$f":"IF(COUNT(SEARCH($B$2:$B$156,A139)),\"\",A139)","v":""}]
["купить футболку женскую в интернет магазине","автокресла",{"$f":"IF(COUNT(SEARCH($B$2:$B$156,A140)),\"\",A140)","v":"купить футболку женскую в интернет магазине"}]
["купить футболку серого цвета","воркаут",{"$f":"IF(COUNT(SEARCH($B$2:$B$156,A141)),\"\",A141)","v":"купить футболку серого цвета"}]
["купить футболку со смайликами","рация",{"$f":"IF(COUNT(SEARCH($B$2:$B$156,A142)),\"\",A142)","v":"купить футболку со смайликами"}]
["мужская футболка купить онлайн","бюстгальтер",{"$f":"IF(COUNT(SEARCH($B$2:$B$156,A143)),\"\",A143)","v":""}]
["семейные футболки купить","кормящих",{"$f":"IF(COUNT(SEARCH($B$2:$B$156,A144)),\"\",A144)","v":"семейные футболки купить"}]
["топ футболка женская","тренировка",{"$f":"IF(COUNT(SEARCH($B$2:$B$156,A145)),\"\",A145)","v":"топ футболка женская"}]
["футболка queen купить","мокрый",{"$f":"IF(COUNT(SEARCH($B$2:$B$156,A146)),\"\",A146)","v":"футболка queen купить"}]
["футболки с котами купить","мокрых",{"$f":"IF(COUNT(SEARCH($B$2:$B$156,A147)),\"\",A147)","v":"футболки с котами купить"}]
["футболки супергероев купить","harley",{"$f":"IF(COUNT(SEARCH($B$2:$B$156,A148)),\"\",A148)","v":"футболки супергероев купить"}]
["где купить модную футболку","харли",{"$f":"IF(COUNT(SEARCH($B$2:$B$156,A149)),\"\",A149)","v":"где купить модную футболку"}]
["где купить парные футболки","игры",{"$f":"IF(COUNT(SEARCH($B$2:$B$156,A150)),\"\",A150)","v":"где купить парные футболки"}]
["женские футболки с рисунками","game",{"$f":"IF(COUNT(SEARCH($B$2:$B$156,A151)),\"\",A151)","v":"женские футболки с рисунками"}]
["купить футболки с картинками","группа",{"$f":"IF(COUNT(SEARCH($B$2:$B$156,A152)),\"\",A152)","v":""}]
["купить футболку с монашкой","размер",{"$f":"IF(COUNT(SEARCH($B$2:$B$156,A153)),\"\",A153)","v":"купить футболку с монашкой"}]
["купить футболку россия в интернет магазине","логотип",{"$f":"IF(COUNT(SEARCH($B$2:$B$156,A154)),\"\",A154)","v":"купить футболку россия в интернет магазине"}]
["купить футболку хорошего качества","вязаные",{"$f":"IF(COUNT(SEARCH($B$2:$B$156,A155)),\"\",A155)","v":"купить футболку хорошего качества"}]
["модные футболки 2015 купить",2015,{"$f":"IF(COUNT(SEARCH($B$2:$B$156,A156)),\"\",A156)","v":""}]
["футболка с путиным купить в москве магазин",null,{"$f":"IF(COUNT(SEARCH($B$2:$B$156,A157)),\"\",A157)","v":"футболка с путиным купить в москве магазин"}]
["футболка кока кола купить",null,{"$f":"IF(COUNT(SEARCH($B$2:$B$156,A158)),\"\",A158)","v":"футболка кока кола купить"}]
["модные майки для девушек",null,{"$f":"IF(COUNT(SEARCH($B$2:$B$156,A159)),\"\",A159)","v":"модные майки для девушек"}]
["футболки для девочки интернет магазин",null,{"$f":"IF(COUNT(SEARCH($B$2:$B$156,A160)),\"\",A160)","v":"футболки для девочки интернет магазин"}]
["где купить хорошую футболку",null,{"$f":"IF(COUNT(SEARCH($B$2:$B$156,A161)),\"\",A161)","v":"где купить хорошую футболку"}]
["заказать женские футболки",null,{"$f":"IF(COUNT(SEARCH($B$2:$B$156,A162)),\"\",A162)","v":"заказать женские футболки"}]
["заказать купить футболку",null,{"$f":"IF(COUNT(SEARCH($B$2:$B$156,A163)),\"\",A163)","v":"заказать купить футболку"}]
["купить женскую футболку с черепом",null,{"$f":"IF(COUNT(SEARCH($B$2:$B$156,A164)),\"\",A164)","v":"купить женскую футболку с черепом"}]
["купить прикольные футболки недорого",null,{"$f":"IF(COUNT(SEARCH($B$2:$B$156,A165)),\"\",A165)","v":"купить прикольные футболки недорого"}]
["купить стильную футболку в интернет магазине",null,{"$f":"IF(COUNT(SEARCH($B$2:$B$156,A166)),\"\",A166)","v":"купить стильную футболку в интернет магазине"}]
["купить футболку для девушки",null,{"$f":"IF(COUNT(SEARCH($B$2:$B$156,A167)),\"\",A167)","v":"купить футболку для девушки"}]
["купить футболку омск",null,{"$f":"IF(COUNT(SEARCH($B$2:$B$156,A168)),\"\",A168)","v":"купить футболку омск"}]
["купить футболку через интернет",null,{"$f":"IF(COUNT(SEARCH($B$2:$B$156,A169)),\"\",A169)","v":"купить футболку через интернет"}]
["однотонная футболка женская",null,{"$f":"IF(COUNT(SEARCH($B$2:$B$156,A170)),\"\",A170)","v":"однотонная футболка женская"}]
["футболка с якорем купить",null,{"$f":"IF(COUNT(SEARCH($B$2:$B$156,A171)),\"\",A171)","v":"футболка с якорем купить"}]
["футболки женские в интернете",null,{"$f":"IF(COUNT(SEARCH($B$2:$B$156,A172)),\"\",A172)","v":"футболки женские в интернете"}]
["прикольные футболки для девочек",null,{"$f":"IF(COUNT(SEARCH($B$2:$B$156,A173)),\"\",A173)","v":"прикольные футболки для девочек"}]
["футболка с открытым плечом для девочек",null,{"$f":"IF(COUNT(SEARCH($B$2:$B$156,A174)),\"\",A174)","v":"футболка с открытым плечом для девочек"}]
["белая майка с принтом",null,{"$f":"IF(COUNT(SEARCH($B$2:$B$156,A175)),\"\",A175)","v":"белая майка с принтом"}]
["белая футболка хлопок купить",null,{"$f":"IF(COUNT(SEARCH($B$2:$B$156,A176)),\"\",A176)","v":"белая футболка хлопок купить"}]
["где купить недорогие футболки",null,{"$f":"IF(COUNT(SEARCH($B$2:$B$156,A177)),\"\",A177)","v":"где купить недорогие футболки"}]
["где купить прикольные футболки",null,{"$f":"IF(COUNT(SEARCH($B$2:$B$156,A178)),\"\",A178)","v":"где купить прикольные футболки"}]
["где купить футболку джек дэниэлс",null,{"$f":"IF(COUNT(SEARCH($B$2:$B$156,A179)),\"\",A179)","v":"где купить футболку джек дэниэлс"}]
["женские футболки купить москва",null,{"$f":"IF(COUNT(SEARCH($B$2:$B$156,A180)),\"\",A180)","v":"женские футболки купить москва"}]
["купить классную футболку",null,{"$f":"IF(COUNT(SEARCH($B$2:$B$156,A181)),\"\",A181)","v":"купить классную футболку"}]
["купить летние футболки женские",null,{"$f":"IF(COUNT(SEARCH($B$2:$B$156,A182)),\"\",A182)","v":"купить летние футболки женские"}]
["купить молодежную футболку",null,{"$f":"IF(COUNT(SEARCH($B$2:$B$156,A183)),\"\",A183)","v":"купить молодежную футболку"}]
["купить футболки в питере",null,{"$f":"IF(COUNT(SEARCH($B$2:$B$156,A184)),\"\",A184)","v":"купить футболки в питере"}]
["купить футболки для пары",null,{"$f":"IF(COUNT(SEARCH($B$2:$B$156,A185)),\"\",A185)","v":"купить футболки для пары"}]
["купить футболку в москве недорого",null,{"$f":"IF(COUNT(SEARCH($B$2:$B$156,A186)),\"\",A186)","v":"купить футболку в москве недорого"}]
["купить футболку в спб в интернет магазине",null,{"$f":"IF(COUNT(SEARCH($B$2:$B$156,A187)),\"\",A187)","v":"купить футболку в спб в интернет магазине"}]
["купить футболку для мальчика интернет магазин",null,{"$f":"IF(COUNT(SEARCH($B$2:$B$156,A188)),\"\",A188)","v":""}]
["купить футболку через интернет магазин",null,{"$f":"IF(COUNT(SEARCH($B$2:$B$156,A189)),\"\",A189)","v":"купить футболку через интернет магазин"}]
["майки женские с принтом",null,{"$f":"IF(COUNT(SEARCH($B$2:$B$156,A190)),\"\",A190)","v":"майки женские с принтом"}]
["футболка пеликан женская",null,{"$f":"IF(COUNT(SEARCH($B$2:$B$156,A191)),\"\",A191)","v":"футболка пеликан женская"}]
["футболки с пони купить",null,{"$f":"IF(COUNT(SEARCH($B$2:$B$156,A192)),\"\",A192)","v":"футболки с пони купить"}]
["футболки женские спб",null,{"$f":"IF(COUNT(SEARCH($B$2:$B$156,A193)),\"\",A193)","v":"футболки женские спб"}]
["эксклюзивные футболки купить",null,{"$f":"IF(COUNT(SEARCH($B$2:$B$156,A194)),\"\",A194)","v":"эксклюзивные футболки купить"}]
["майка с принтом купить",null,{"$f":"IF(COUNT(SEARCH($B$2:$B$156,A195)),\"\",A195)","v":"майка с принтом купить"}]
["майка женская с принтом",null,{"$f":"IF(COUNT(SEARCH($B$2:$B$156,A196)),\"\",A196)","v":"майка женская с принтом"}]
["короткие футболки для девочек",null,{"$f":"IF(COUNT(SEARCH($B$2:$B$156,A197)),\"\",A197)","v":"короткие футболки для девочек"}]
["модные футболки для девочек",null,{"$f":"IF(COUNT(SEARCH($B$2:$B$156,A198)),\"\",A198)","v":"модные футболки для девочек"}]
["мужская футболка с принтом купить",null,{"$f":"IF(COUNT(SEARCH($B$2:$B$156,A199)),\"\",A199)","v":""}]
["белая футболка для мальчика купить",null,{"$f":"IF(COUNT(SEARCH($B$2:$B$156,A200)),\"\",A200)","v":""}]